bitfinex/quotes_ETHUSD_20250323
["timestamp","ask_amount","ask_price","bid_price","bid_amount"]
[1742699926685,4.22425135,2002.7,2002.4,4.99396]
[1742699926887,4.9932,2002.8,2002.4,4.99396]
[1742699927090,9.9864,2002.8,2002.3,31.40524]
[1742699927421,9.98634,2002.8,2002.3,31.40514]
[1742699927721,4.99314,2002.8,2002.3,36.39928]
[1742699927923,5.03349225,2003.0,2002.4,4.99383]
[1742699928083,4.99283,2002.9,2002.4,4.99383]
[1742699928413,9.98582,2002.9,2002.4,4.99383]
[1742699928918,4.99308,2002.8,2002.4,4.99383]
[1742699931587,9.21733135,2002.8,2002.4,4.99383]
[1742699934123,14.21055135,2002.8,2002.3,36.39934]
[1742699934787,4.99326,2002.7,2002.3,36.39924]
[1742699935824,4.99326,2002.7,2002.3,31.4051]
[1742699936120,10.75517,2002.7,2002.3,31.4051]
[1742699936693,5.76176,2002.7,2002.3,31.4051]
[1742699939032,10.75525,2002.7,2002.3,26.411]
[1742699939333,5.76176,2002.7,2002.3,26.411]
[1742699940129,9.21777135,2002.6,2002.3,26.411]
[1742699940435,9.21825135,2002.4,2002.3,26.411]
[1742699941433,4.99393,2002.5,2002.3,26.411]
[1742699942330,9.21776135,2002.6,2002.3,26.411]
[1742699942536,14.21151135,2002.6,2002.3,26.411]
[1742699944235,4.99388,2002.5,2002.3,26.411]
[1742699944400,9.98785,2002.5,2002.3,26.411]
[1742699944600,4.99388,2002.5,2002.3,26.411]
[1742699947109,9.98786,2002.5,2002.3,26.411]
[1742699947907,4.994,2002.4,2002.3,26.411]
[1742699948308,0.7685,2002.7,2002.3,31.40508]
[1742699948513,3.0,2002.8,2002.4,4.9939]
[1742699949428,7.99308,2002.8,2002.4,4.9939]
[1742699949643,7.99308,2002.8,2002.3,36.39914]
[1742699949832,9.98319135,2002.9,2002.4,4.99399]
[1742699950033,9.98319135,2002.9,2002.5,4.9937]
[1742699950342,9.21719135,2002.9,2002.5,4.9937]
[1742699950843,14.21006135,2002.9,2002.4,4.99399]
[1742699951412,9.21712135,2002.9,2002.4,4.99385]
[1742699951946,9.21712135,2002.9,2002.5,4.99364]
[1742699952309,4.22425135,2002.9,2002.5,4.99364]
[1742699952706,5.03329225,2003.0,2002.5,5.04357111]
[1742699953317,0.04075225,2003.0,2002.5,4.99351]
[1742699953542,5.03330225,2003.0,2002.6,4.99338]
[1742699955942,0.04075225,2003.0,2002.7,5.54314]
[1742699956629,0.04075225,2003.0,2002.8,26.398]
[1742699958141,5.03331225,2003.0,2002.8,26.398]
[1742699958335,9.21701135,2002.9,2002.8,26.398]
[1742699962241,4.22425135,2002.9,2002.8,26.398]
[1742699965165,5.03331225,2003.0,2002.8,26.398]
[1742699965671,10.02605225,2003.0,2002.8,26.398]
[1742699965871,9.21701135,2002.9,2002.8,26.398]
[1742699970639,11.45264371,2002.9,2002.8,26.398]
[1742699976335,4.22425135,2002.9,2002.8,26.398]
[1742699976663,9.21701135,2002.9,2002.8,26.398]
[1742699987163,4.22425135,2002.9,2002.8,26.398]
[1742699989280,2.53161791,2002.9,2002.8,26.398]
[1742699990168,7.52437791,2002.9,2002.8,26.398]
[1742699998887,9.11783485,2002.9,2002.8,26.398]
[1742700003410,8.29627791,2002.9,2002.8,26.398]
[1742700004609,4.99324,2002.8,2002.4,0.55]
[1742700004814,2.53161791,2002.7,2002.6,26.397]
[1742700007212,2.53161791,2002.8,2002.6,26.397]
[1742700009132,2.53161791,2002.7,2002.6,26.397]
[1742700009627,2.53161791,2002.8,2002.6,26.397]
[1742700011199,2.53161791,2002.9,2002.6,26.397]
[1742700011912,2.53161791,2002.8,2002.6,26.397]
[1742700012324,5.75085,2003.1,2002.6,31.3905]
[1742700012631,2.53161791,2002.9,2002.6,31.3905]
[1742700015226,2.53161791,2003.1,2002.8,4.99279]
[1742700015417,8.80667,2003.3,2002.8,4.99279]
[1742700015418,2.53161791,2003.2,2002.9,4.99273]
[1742700015619,2.53161791,2003.1,2002.9,4.99273]
[1742700015816,2.53161791,2003.1,2002.8,9.98565]
[1742700016221,2.53161791,2003.1,2002.8,4.99279]
[1742700017128,2.53161791,2003.1,2002.8,9.98566]
[1742700017499,2.53161791,2003.1,2002.8,4.99279]
[1742700018131,2.53161791,2003.0,2002.7,5.54322]
[1742700019229,2.53161791,2003.0,2002.7,10.53628]
[1742700019734,2.53161791,2003.0,2002.7,10.53621]
[1742700020300,2.53161791,2003.0,2002.7,5.54306]
[1742700020501,2.53161791,2003.0,2002.7,10.53615]
[1742700021536,2.53161791,2003.0,2002.7,5.54306]
[1742700022234,2.53161791,2003.0,2002.7,10.53616]
[1742700022535,2.53161791,2003.0,2002.7,5.54306]
[1742700023427,2.53161791,2002.8,2002.6,26.397]
[1742700023628,2.53161791,2002.8,2002.6,31.3905]
[1742700024337,3.34641791,2002.9,2002.6,31.3905]
[1742700025340,2.53161791,2002.8,2002.6,31.3905]
[1742700025640,3.34641791,2002.9,2002.6,31.3905]
[1742700027211,2.53161791,2002.9,2002.6,31.3905]
[1742700027544,2.53161791,2002.9,2002.6,36.38386]
[1742700027717,2.53161791,2003.0,2002.6,31.39036]
[1742700027921,2.53161791,2003.0,2002.7,4.99323]
[1742700029141,2.53161791,2002.9,2002.8,26.393]
[1742700029443,2.53161791,2003.0,2002.8,26.393]
[1742700030209,2.53161791,2002.9,2002.8,26.393]
[1742700032026,12.20020861,2002.9,2002.8,26.393]
[1742700032410,9.6685907,2002.9,2002.8,26.393]
[1742700033411,8.33927791,2002.9,2002.8,26.393]
[1742700033626,7.52437791,2002.9,2002.8,26.393]
[1742700036155,4.99251,2003.0,2002.8,26.393]
[1742700036156,3.0,2003.0,2002.8,26.393]
[1742700036445,2.53161791,2002.9,2002.8,26.393]
[1742700036820,7.52437791,2002.9,2002.8,26.393]
[1742700046455,2.53161791,2002.9,2002.8,26.393]
[1742700048064,4.99176,2003.3,2002.8,26.393]
[1742700048358,7.52337791,2003.3,2002.8,36.37873]
[1742700048572,2.53161791,2003.2,2002.8,36.37873]
[1742700049343,2.53161791,2003.2,2002.8,31.38583]
[1742700050150,2.53161791,2003.2,2002.8,31.3858]
[1742700050561,2.53161791,2003.2,2002.9,4.99266]
[1742700050936,2.53161791,2003.3,2003.0,4.99244]
[1742700055286,2.53161791,2003.3,2003.0,4.99241]
[1742700058246,2.53161791,2003.3,2002.9,4.99272]
[1742700059882,2.53161791,2003.3,2003.0,26.392]
[1742700060078,2.53161791,2003.3,2003.0,31.38439]
[1742700060463,2.53161791,2003.4,2003.0,31.38439]
[1742700061054,2.53161791,2003.4,2003.1,4.99215]
[1742700061256,2.53161791,2003.4,2003.1,5.04206781]
[1742700062372,2.53161791,2003.4,2003.1,5.04201781]
[1742700062873,2.53161791,2003.4,2003.1,4.9921]
[1742700063575,2.53161791,2003.5,2003.2,4.99196]
[1742700063777,2.53161791,2003.6,2003.3,5.04151576]
[1742700064076,13.80001,2003.8,2003.3,5.04149576]
[1742700064250,2.53161791,2003.7,2003.4,4.99139]
[1742700064575,2.53161791,2003.7,2003.5,4.99126]
[1742700064779,7.52188791,2003.9,2003.5,31.38126]
[1742700064958,2.53161791,2003.9,2003.6,4.99091]
[1742700065359,4.98977,2004.1,2003.7,4.99063]
[1742700065555,2.53161791,2004.0,2003.7,4.99063]
[1742700065948,7.52140791,2004.1,2003.7,9.98128]
[1742700066147,2.53161791,2004.1,2003.7,4.99063]
[1742700066572,2.53161791,2004.1,2003.8,4.99045]
[1742700068175,2.53161791,2004.1,2003.7,5.54071]
[1742700068482,7.52140791,2004.1,2003.7,5.54071]
[1742700068653,7.52140791,2004.1,2003.7,5.90963984]
[1742700070083,7.52140791,2004.1,2003.7,5.54071]
[1742700071382,2.53161791,2003.9,2003.7,0.55]
[1742700071581,7.52172791,2004.0,2003.7,0.55]
[1742700073377,2.53161791,2004.0,2003.7,0.55]
[1742700073681,7.52168791,2004.0,2003.7,0.55]
[1742700075046,4.98979,2004.1,2003.7,5.54075]
[1742700075252,7.52140791,2004.1,2003.7,5.54075]
[1742700075583,7.52165791,2004.0,2003.7,0.55]
[1742700075988,2.53161791,2004.0,2003.7,0.55]
[1742700076356,12.51130791,2004.1,2003.7,0.55]
[1742700076768,7.52140791,2004.1,2003.7,0.55]
[1742700077187,12.51129791,2004.1,2003.7,0.55]
[1742700077580,2.53161791,2004.0,2003.7,0.55]
[1742700078984,7.52164791,2004.0,2003.7,0.55]
[1742700079462,2.53161791,2004.0,2003.7,0.55]
[1742700079988,2.53161791,2004.0,2003.8,26.382]
[1742700083494,2.53161791,2004.1,2003.8,31.37244]
[1742700084067,7.52127791,2004.2,2003.8,31.3724]
[1742700084394,12.55128016,2004.3,2003.9,4.99026]
[1742700084590,12.55128016,2004.3,2003.8,36.36278]
[1742700084769,7.56178016,2004.3,2004.0,26.381]
[1742700084975,2.57237016,2004.3,2004.0,26.381]
[1742700085492,7.56168016,2004.3,2004.0,26.381]
[1742700088203,2.53161791,2004.2,2004.0,26.381]
[1742700089304,7.56168016,2004.3,2004.0,26.381]
[1742700089874,7.52126791,2004.2,2004.0,26.381]
[1742700092006,2.53161791,2004.1,2004.0,26.381]
[1742700094380,7.52116791,2004.2,2004.0,26.381]
[1742700094578,2.53161791,2004.1,2004.0,26.381]
[1742700095334,7.52138791,2004.1,2004.0,26.381]
[1742700096004,2.53161791,2004.1,2004.0,26.381]
[1742700097109,2.53161791,2004.1,2004.0,26.379]
[1742700098009,7.52138791,2004.1,2004.0,26.379]
[1742700106416,8.85680693,2004.1,2004.0,26.379]
[1742700107816,2.53161791,2004.1,2004.0,26.379]
[1742700108419,7.52138791,2004.1,2004.0,26.379]
[1742700109721,2.53161791,2004.1,2004.0,26.379]
[1742700111125,7.52138791,2004.1,2004.0,26.379]
[1742700113194,2.53161791,2004.1,2004.0,26.379]
[1742700113596,7.52138791,2004.1,2004.0,26.379]
[1742700114512,2.53161791,2004.2,2004.0,26.379]
[1742700116136,7.52113791,2004.2,2004.0,26.379]
[1742700118025,2.53161791,2004.2,2004.0,26.379]
[1742700119033,7.52117791,2004.2,2004.0,26.379]
[1742700119329,2.53161791,2004.2,2004.0,26.379]
[1742700119711,2.53161791,2004.2,2004.1,26.378]
[1742700120602,7.52113791,2004.2,2004.1,26.378]
[1742700121101,8.28603791,2004.2,2004.1,26.378]
[1742700121343,9.91864393,2004.2,2004.1,26.378]
[1742700122041,9.15374393,2004.2,2004.1,26.378]
[1742700123717,9.91864393,2004.2,2004.1,26.378]
[1742700131761,15.44966184,2004.2,2004.1,26.378]
[1742700133286,4.99125,2003.6,2003.1,4.99222]
[1742700133448,2.53161791,2003.2,2003.0,4.99234]
[1742700133781,2.53161791,2003.2,2003.1,26.93]
[1742700134081,2.53161791,2003.2,2003.1,26.38]
[1742700135478,2.53161791,2003.3,2003.1,26.38]
[1742700135681,2.53161791,2003.4,2003.1,26.38]
[1742700136653,7.52315791,2003.4,2003.1,26.38]
[1742700137879,2.53161791,2003.3,2003.1,26.38]
[1742700138073,7.52315791,2003.4,2003.1,26.38]
[1742700139158,2.53161791,2003.4,2003.1,31.37216]
[1742700141105,2.53161791,2003.5,2003.2,5.04178415]
[1742700141396,2.53161791,2003.5,2003.2,4.99187]
[1742700141905,2.53161791,2003.5,2003.1,31.37221]
[1742700142497,2.53161791,2003.5,2003.2,5.54198]
[1742700145391,7.52268791,2003.6,2003.2,5.54198]
[1742700145895,2.53161791,2003.5,2003.2,5.54198]
[1742700150766,2.53161791,2003.4,2003.2,0.55]
[1742700152471,2.53161791,2003.4,2003.3,26.386]
[1742700154400,7.52312791,2003.4,2003.3,26.386]
[1742700154607,8.34142791,2003.4,2003.3,26.386]
[1742700156925,9.6747037,2003.4,2003.3,26.386]
[1742700163326,12.20632161,2003.4,2003.3,26.386]
[1742700166623,9.6747037,2003.4,2003.3,26.386]
[1742700176448,4.99197,2003.3,2003.1,26.391]
[1742700176754,2.53161791,2003.2,2003.1,26.391]
[1742700177750,7.52362791,2003.2,2003.1,26.391]
[1742700180158,2.53161791,2003.2,2003.1,26.391]
[1742700181256,7.52362791,2003.2,2003.1,26.391]
[1742700204261,4.99201,2003.2,2003.1,26.391]
[1742700228294,7.52362791,2003.2,2003.1,26.391]
[1742700232320,7.52362791,2003.2,2003.0,26.392]
[1742700233619,4.99201,2003.2,2003.0,26.392]
[1742700234017,3.0,2003.4,2003.0,31.38426]
[1742700234322,10.52327791,2003.4,2003.0,31.38426]
[1742700234687,7.52327791,2003.4,2003.0,26.392]
[1742700234890,7.52357791,2003.3,2003.0,26.392]
[1742700235190,12.51555791,2003.3,2003.0,26.392]
[1742700236315,7.52364791,2003.2,2003.0,26.392]
[1742700236705,12.51587791,2003.2,2003.0,26.392]
[1742700236921,7.52364791,2003.2,2003.0,26.392]
[1742700237219,4.99203,2003.2,2003.0,26.392]
[1742700237607,12.51525791,2003.3,2003.0,26.392]
[1742700237814,7.52337791,2003.3,2003.0,26.392]
[1742700239628,12.51536791,2003.3,2003.0,26.392]
[1742700239930,4.99211,2003.2,2003.0,26.392]
[1742700240129,7.52372791,2003.2,2003.0,26.392]
[1742700240922,4.99211,2003.2,2003.0,26.392]
[1742700242533,7.52340791,2003.3,2003.0,26.392]
[1742700245437,4.9918,2003.3,2003.0,26.392]
[1742700246535,7.52312791,2003.4,2003.0,31.3845]
[1742700248839,7.52312791,2003.4,2003.1,26.392]
[1742700249937,7.52287791,2003.5,2003.1,31.38415]
[1742700250138,8.33712791,2003.8,2003.3,4.99158]
[1742700250437,7.52249791,2003.7,2003.3,4.99158]
[1742700251945,7.52249791,2003.7,2003.3,5.36626885]
[1742700252132,4.99088,2003.7,2003.3,5.36626885]
[1742700252308,4.99088,2003.7,2003.3,5.4161801]
[1742700252651,4.99088,2003.7,2003.3,5.36626885]
[1742700254941,7.52249791,2003.7,2003.3,0.37468885]
[1742700255142,4.99111,2003.6,2003.2,8.07361791]
[1742700255342,4.99111,2003.6,2003.2,5.542]
[1742700255550,7.52249791,2003.7,2003.2,5.54176]
[1742700255841,4.99088,2003.7,2003.3,4.99171]
[1742700256545,4.99088,2003.7,2003.3,5.36697796]
[1742700256839,8.33703791,2003.8,2003.3,7.89846587]
[1742700257044,4.99052,2003.8,2003.4,4.9914]
[1742700257723,7.52213791,2003.8,2003.4,4.9914]
[1742700259226,4.99052,2003.8,2003.4,4.9914]
[1742700264232,4.99052,2003.8,2003.4,4.99135]
[1742700264824,4.9908,2003.7,2003.3,5.36702796]
[1742700265029,7.52241791,2003.7,2003.4,0.55]
[1742700265348,7.52241791,2003.7,2003.3,5.36702796]
[1742700269952,7.52241791,2003.7,2003.4,26.386]
[1742700272946,4.99115,2003.6,2003.4,26.386]
[1742700273147,8.28036791,2003.6,2003.4,26.386]
[1742700273351,4.99126,2003.5,2003.4,26.386]
[1742700273956,8.28026791,2003.6,2003.4,26.386]
[1742700274156,5.74865,2003.6,2003.4,26.386]
[1742700274525,4.99105,2003.6,2003.4,26.386]
[1742700277178,9.98227,2003.6,2003.4,26.386]
[1742700277475,7.52266791,2003.6,2003.4,26.386]
[1742700277639,4.99105,2003.6,2003.4,26.386]
[1742700280382,5.74886,2003.5,2003.4,26.386]
[1742700280866,8.28047791,2003.5,2003.4,26.386]
[1742700281233,12.6076307,2003.5,2003.4,26.386]
[1742700285368,11.28047791,2003.5,2003.4,26.386]
[1742700288876,13.81209582,2003.5,2003.4,26.386]
[1742700289182,4.99233,2003.1,2003.0,26.389]
[1742700289771,7.52394791,2003.1,2003.0,26.389]
[1742700291746,10.52394791,2003.1,2003.0,26.389]
[1742700291967,13.3260207,2003.1,2003.0,26.389]
[1742700293482,11.27524791,2003.1,2003.0,26.389]
[1742700302493,10.52394791,2003.1,2003.0,26.389]
[1742700303564,11.28324791,2003.1,2003.0,26.389]
[1742700304962,4.99283,2002.9,2002.8,26.394]
[1742700305163,7.52444791,2002.9,2002.8,26.394]
[1742700305806,4.99283,2002.9,2002.8,26.394]
[1742700305974,7.52417791,2003.0,2002.8,26.394]
[1742700306296,7.99256,2003.0,2002.8,26.394]
[1742700306591,2.53161791,2002.9,2002.8,26.394]
[1742700306795,7.52392791,2003.1,2002.8,26.394]
[1742700307006,7.52376791,2003.2,2002.8,31.38692]
[1742700307220,4.99215,2003.2,2002.8,31.38692]
[1742700307710,10.52339791,2003.3,2002.9,4.99273]
[1742700307868,4.99201,2003.2,2002.8,31.38692]
[1742700308292,10.52339791,2003.3,2002.8,31.38689]
[1742700309137,3.0,2003.3,2002.9,7.52432791]
[1742700309400,7.99162,2003.4,2003.0,7.52389791]
[1742700309566,7.99162,2003.4,2003.0,4.99228]
[1742700309767,10.52323791,2003.4,2003.0,4.99228]
[1742700310178,15.51497791,2003.4,2002.9,7.52432791]
[1742700310368,4.99176,2003.3,2002.9,4.99271]
[1742700311073,7.99162,2003.4,2003.0,2.53161791]
[1742700311274,7.99162,2003.4,2003.0,4.99249]
[1742700311463,7.99162,2003.4,2003.0,7.57402735]
[1742700311672,7.99162,2003.4,2003.0,7.52410791]
[1742700312010,7.99162,2003.4,2003.0,7.57402701]
[1742700312303,3.0,2003.4,2003.1,4.99224]
[1742700312518,7.99151,2003.4,2003.0,7.52397791]
[1742700313819,4.99055,2003.8,2003.0,7.52397791]
[1742700313820,0.04075225,2004.3,2003.3,5.06323582]
[1742700314026,0.04075225,2004.3,2004.2,11.07113791]
[1742700314313,0.04075225,2004.3,2004.2,48.78170491]
[1742700314810,0.04075225,2004.3,2004.2,47.71413791]
[1742700316313,0.04075225,2004.3,2004.2,48.08022182]
[1742700317235,0.04075225,2004.3,2004.2,49.75922045]
[1742700318820,0.01,2004.4,2004.3,4.98927]
[1742700320679,0.01,2004.4,2004.3,5.53927]
[1742700322702,0.01,2004.4,2004.3,5.58915348]
[1742700323021,0.01,2004.4,2004.3,5.53927]
[1742700328821,0.01,2004.4,2004.3,8.58915024]
[1742700329113,0.01,2004.4,2004.3,8.53927]
[1742700330925,0.01,2004.4,2004.3,8.58915031]
[1742700331219,0.01,2004.4,2004.3,8.58915004]
[1742700331600,0.01,2004.4,2004.3,8.53927]
[1742700332525,0.01,2004.4,2004.3,8.58915035]
[1742700332724,0.01,2004.4,2004.3,8.53927]
[1742700333804,0.01,2004.4,2004.3,8.5891504]
[1742700334119,0.01,2004.4,2004.3,8.53927]
[1742700334325,0.01,2004.4,2004.3,8.58915024]
[1742700334790,0.01,2004.4,2004.3,8.53927]
[1742700335290,0.01,2004.4,2004.3,8.58915036]
[1742700336144,0.01,2004.4,2004.3,8.53927]
[1742700336311,0.01,2004.4,2004.3,8.58915027]
[1742700336505,0.01,2004.4,2004.3,8.53927]
[1742700337331,0.01,2004.4,2004.3,8.58915047]
[1742700337497,0.01,2004.4,2004.3,8.53927]
[1742700337700,0.01,2004.4,2004.3,8.58915048]
[1742700338027,0.01,2004.4,2004.3,8.53927]
[1742700340599,0.01,2004.4,2004.3,8.58915047]
[1742700341528,0.01,2004.4,2004.3,8.53927]
[1742700344313,0.01,2004.4,2004.3,34.90927]
[1742700347925,0.01,2004.4,2004.3,31.90927]
[1742700349006,0.01,2004.4,2004.3,31.86851775]
[1742700365248,0.01,2004.4,2004.3,34.39485945]
[1742700380569,0.01,2004.4,2004.3,31.86851775]
[1742700380753,0.01,2004.4,2004.3,34.39485945]
[1742700389235,0.01,2004.4,2004.3,26.92]
[1742700390050,0.01,2004.4,2004.3,29.4463417]
[1742700391445,0.01,2004.4,2004.3,26.92]
[1742700392272,0.01,2004.4,2004.3,29.4463417]
[1742700394575,0.01,2004.4,2004.3,34.4356117]
[1742700395475,0.00412272,2004.4,2004.3,34.4356117]
[1742700418484,0.00412272,2004.4,2004.3,41.21494034]
[1742700420302,0.00412272,2004.4,2004.3,40.4356117]
[1742700422109,0.00412272,2004.4,2004.3,50.6856117]
[1742700429939,0.9380386,2004.9,2004.8,7.98802]
[1742700429940,0.1184386,2004.9,2004.8,7.98802]
[1742700430227,0.1184386,2004.9,2004.8,11.11423072]
[1742700430423,0.1184386,2004.9,2004.8,11.0643617]
[1742700431240,0.1184386,2004.9,2004.8,11.44492159]
[1742700434027,0.1184386,2004.9,2004.8,21.69492159]
[1742700436427,0.1184386,2004.9,2004.8,22.68570074]
[1742700437012,0.1184386,2004.9,2004.8,49.05070074]
[1742700445751,0.1184386,2004.9,2004.8,38.80070074]
[1742700468937,0.1184386,2004.9,2004.8,52.05070074]
[1742700469143,0.1184386,2004.9,2004.8,52.83002938]
[1742700490392,8.6e-06,2004.9,2004.8,56.08110503]
[1742700491060,8.6e-06,2004.9,2004.8,53.55476333]
[1742700491284,8.6e-06,2004.9,2004.8,56.08110503]
[1742700492898,8.6e-06,2004.9,2004.8,53.55476333]
[1742700493815,8.6e-06,2004.9,2004.8,56.08110503]
[1742700494670,8.6e-06,2004.9,2004.8,53.55476333]
[1742700496399,8.6e-06,2004.9,2004.8,56.08110503]
[1742700496699,8.6e-06,2004.9,2004.8,53.55476333]
[1742700496869,8.6e-06,2004.9,2004.8,56.08110503]
[1742700498586,8.6e-06,2004.9,2004.8,53.55476333]
[1742700502002,8.6e-06,2004.9,2004.8,52.83002938]
[1742700512036,0.7751086,2004.9,2004.8,45.50070074]
[1742700512382,0.7751086,2004.9,2004.8,42.97435904]
[1742700512603,0.7751086,2004.9,2004.8,26.74555989]
[1742700513500,1.35135046,2004.9,2004.8,26.74555989]
[1742700513795,1.35135046,2004.9,2004.4,7.5153117]
[1742700513796,0.7751,2004.7,2004.4,7.5153117]
[1742700514000,0.7751,2004.7,2004.5,26.357]
[1742700516231,5.76347,2004.7,2004.5,26.357]
[1742700516404,4.98837,2004.7,2004.5,26.357]
[1742700516605,0.7751,2004.6,2004.5,26.357]
[1742700517308,5.76362,2004.6,2004.5,26.357]
[1742700517530,4.98852,2004.6,2004.5,26.357]
[1742700517733,5.76362,2004.6,2004.5,26.357]
[1742700517934,9.75633669,2004.6,2004.5,26.357]
[1742700521626,4.98927,2004.3,2004.0,0.55]
[1742700521813,0.7751,2004.2,2004.1,26.365]
[1742700523541,0.7751,2004.2,2004.1,26.73832909]
[1742700524041,0.7751,2004.2,2004.1,29.26467079]
[1742700524223,0.7751,2004.2,2004.1,34.25444079]
[1742700524611,0.7751,2004.2,2004.1,29.26467079]
[1742700525816,0.7751,2004.2,2004.1,26.73832909]
[1742700532553,1.32797517,2004.2,2004.1,26.73832909]
[1742700532722,2.10527517,2004.2,2004.1,26.73832909]
[1742700533545,0.7773,2004.2,2004.1,26.73832909]
[1742700547470,5.76682,2004.2,2004.1,26.73832909]
[1742700548037,8.2931617,2004.2,2004.1,26.365]
[1742700555063,5.76682,2004.2,2004.1,26.365]
[1742700556463,4.98931,2004.3,2004.1,26.365]
[1742700558267,4.98952,2004.2,2004.1,26.365]
[1742700558943,5.76992,2004.2,2004.1,26.365]
[1742700560367,7.09847717,2004.2,2004.1,26.365]
[1742700563067,5.76992,2004.2,2004.1,26.365]
[1742700564453,4.98931,2004.3,2004.1,26.365]
[1742700565875,9.97869,2004.3,2004.1,26.365]
[1742700566055,4.98952,2004.2,2004.1,26.365]
[1742700572295,5.74652,2004.2,2004.1,26.365]
[1742700572493,6.820103,2004.2,2004.1,26.365]
[1742700574594,5.74652,2004.2,2004.1,26.365]
[1742700574956,4.98931,2004.3,2004.1,26.365]
[1742700576699,5.74603,2004.4,2004.1,26.365]
[1742700576700,0.757,2004.4,2004.1,28.8913417]
[1742700576904,9.97782,2004.5,2004.1,28.8913417]
[1742700577206,4.98905,2004.4,2004.1,28.8913417]
[1742700579612,0.757,2004.6,2004.2,2.5263417]
[1742700579896,0.757,2004.6,2004.3,2.5263417]
[1742700579897,4.98854,2004.6,2004.3,2.5263417]
[1742700580896,4.98854,2004.6,2004.2,7.5157117]
[1742700581495,4.98841,2004.7,2004.2,12.5049917]
[1742700581671,4.98856,2004.6,2004.2,7.5156217]
[1742700584159,4.98856,2004.6,2004.2,4.98928]
[1742700587402,9.97731,2004.6,2004.2,4.98928]
[1742700587562,9.97731,2004.6,2004.1,34.88755514]
[1742700587563,7.5149017,2004.6,2004.1,34.88755514]
[1742700587774,0.786,2004.5,2004.1,31.35473]
[1742700588272,8.6e-06,2004.9,2004.8,4.98802]
[1742700588520,8.6e-06,2004.9,2004.8,5.53802]
[1742700588815,8.6e-06,2004.9,2004.8,8.04812688]
[1742700589015,8.6e-06,2004.9,2004.8,8.42578294]
[1742700589511,8.6e-06,2004.9,2004.8,5.89944124]
[1742700592216,8.6e-06,2004.9,2004.8,8.42578294]
[1742700598339,8.6e-06,2004.9,2004.8,34.79378294]
[1742700612030,8.6e-06,2004.9,2004.8,37.79378294]
[1742700615658,8.6e-06,2004.9,2004.8,48.04378294]
[1742700617136,0.7628,2005.7,2005.4,4.98641]
[1742700617360,5.74859,2005.7,2005.4,0.37456562]
[1742700617547,5.74859,2005.7,2005.5,26.364]
[1742700617862,13.2609417,2005.7,2005.5,26.364]
[1742700618031,8.2749317,2005.7,2005.5,26.364]
[1742700618464,0.7628,2005.6,2005.5,26.364]
[1742700618862,5.74883,2005.6,2005.5,26.364]
[1742700620164,8.2751717,2005.6,2005.5,26.364]
[1742700624357,9.60318027,2005.6,2005.5,26.364]
[1742700630047,7.07683857,2005.6,2005.5,26.364]
[1742700630248,5.74883,2005.6,2005.5,26.364]
[1742700630432,8.30379575,2005.8,2005.5,26.364]
[1742700631264,4.98589,2005.7,2005.5,26.364]
[1742700641880,4.98603,2005.6,2005.5,26.364]
[1742700642574,12.4982217,2005.7,2005.5,26.364]
[1742700642746,9.97188,2005.7,2005.5,26.364]
[1742700642947,9.97182,2005.7,2005.5,26.364]
[1742700645257,4.98589,2005.7,2005.5,26.364]
[1742700645947,4.98603,2005.6,2005.5,26.364]
[1742700648482,4.98584,2005.7,2005.5,26.364]
[1742700649183,5.77736405,2005.8,2005.5,26.364]
[1742700649385,10.76307405,2005.8,2005.5,26.364]
[1742700650052,4.9858,2005.7,2005.5,26.364]
[1742700651086,4.9858,2005.7,2005.6,26.36]
[1742700652589,6.61475058,2005.7,2005.6,26.36]
[1742700653086,4.9858,2005.7,2005.6,26.36]
[1742700661397,13.28942575,2005.8,2005.6,26.36]
[1742700661689,13.28942575,2005.8,2005.4,0.37863357]
[1742700661690,4.98581,2005.7,2005.4,0.37863357]
[1742700661993,5.77736405,2005.8,2005.7,26.359]
[1742700664390,9.63262132,2005.8,2005.7,26.359]
[1742700664696,9.67322132,2005.8,2005.7,26.359]
[1742700668774,15.19956302,2005.8,2005.7,26.359]
[1742700675701,4.98713,2005.2,2004.8,7.89182776]
[1742700675902,4.98713,2005.2,2004.9,26.361]
[1742700679299,7.5128817,2005.4,2005.0,0.55]
[1742700679476,2.5263417,2005.5,2005.0,3.0763417]
[1742700679672,4.98657,2005.4,2005.0,5.53729]
[1742700680584,4.98657,2005.4,2005.0,8.0636317]
[1742700680797,4.98604,2005.6,2005.2,7.5131817]
[1742700680996,4.98602,2005.7,2005.3,5.53674]
[1742700683403,4.98589,2005.7,2005.3,5.53674]
[1742700683584,7.5122317,2005.7,2005.3,5.53674]
[1742700684906,7.5122317,2005.7,2005.3,0.55]
[1742700685308,4.98614,2005.6,2005.3,0.55]
[1742700685509,7.5124817,2005.6,2005.3,0.55]
[1742700686010,7.5124817,2005.6,2005.4,26.361]
[1742700687908,4.98614,2005.6,2005.4,26.361]
[1742700688077,4.98607,2005.6,2005.4,26.361]
[1742700689711,4.98607,2005.6,2005.4,26.73852732]
[1742700690310,4.98589,2005.7,2005.4,26.73852732]
[1742700700328,4.98589,2005.7,2005.5,26.358]
[1742700703125,7.5123717,2005.6,2005.5,26.358]
[1742700704411,4.98603,2005.6,2005.5,26.358]
[1742700706561,7.5123717,2005.6,2005.5,26.358]
[1742700707297,4.98603,2005.6,2005.5,26.358]
[1742700712611,8.2902317,2005.7,2005.5,26.358]
[1742700712812,13.2761617,2005.7,2005.5,26.358]
[1742700713014,4.98589,2005.7,2005.5,26.358]
[1742700713223,9.97191,2005.7,2005.5,26.358]
[1742700713632,11.30144758,2005.7,2005.5,26.358]
[1742700713829,13.82778928,2005.7,2005.5,26.358]
[1742700714043,4.98603,2005.6,2005.5,26.358]